fUSD/lending_fUSD_20240412
["ID","MTS","AMOUNT","RATE_DAILY","PERIOD"]
[322287128,1712933452245,-150.0,0.00049,9]
[322287129,1712933452254,-150.0,0.00049003,7]
[322287130,1712933452263,-500.0,0.00049041,2]
[322287131,1712933452276,-500.0,0.00049041,31]
[322287132,1712933452285,-500.0,0.00049041,31]
[322287133,1712933452295,-500.0,0.00049041,31]
[322287134,1712933452304,-500.0,0.00049041,31]
[322287135,1712933452314,-500.0,0.00049041,31]
[322287136,1712933452323,-500.0,0.00049041,31]
[322287137,1712933452333,-500.0,0.00049041,31]
[322287138,1712933452343,-500.0,0.00049041,31]
[322287139,1712933452352,-430.24,0.00049041,31]
[322287140,1712933452361,-500.0,0.00049041,31]
[322287141,1712933452371,-500.0,0.00049041,31]
[322287142,1712933452380,-500.0,0.00049041,31]
[322287143,1712933452389,-500.0,0.00049041,31]
[322287144,1712933452399,-500.0,0.00049041,31]
[322287145,1712933452408,-500.0,0.00049041,31]
[322287146,1712933452418,-500.0,0.00049041,31]
[322287147,1712933452427,-500.0,0.00049041,31]
[322287148,1712933452437,-509.892918,0.00049041,31]
[322287149,1712933452447,-500.0,0.00049041,31]
[322287150,1712933452456,-500.0,0.00049041,2]
[322287151,1712933452466,-500.0,0.00049041,31]
[322287152,1712933452475,-500.0,0.00049041,31]
[322287153,1712933452485,-500.0,0.00049041,31]
[322287154,1712933452494,-1631.72,0.00049041,31]
[322287155,1712933452504,-3151.62,0.00049041,31]
[322287156,1712933452514,-500.0,0.00049041,31]
[322287157,1712933452526,-500.0,0.00049041,31]
[322287158,1712933452536,-500.0,0.00049041,31]
[322287159,1712933452546,-602.43,0.00049041,31]
[322287160,1712933452556,-745.31,0.00049041,31]
[322287161,1712933452565,-500.0,0.00049041,31]
[322287162,1712933452575,-851.11,0.00049041,31]
[322287163,1712933452585,-1807.51,0.00049041,31]
[322287164,1712933452594,-500.0,0.00049041,31]
[322287165,1712933452604,-597.07,0.00049041,31]
[322287166,1712933452614,-500.0,0.00049041,31]
[322287167,1712933452624,-500.0,0.00049041,21]
[322287168,1712933452633,-3805.15,0.00049041,31]
[322287169,1712933452643,-500.0,0.00049041,31]
[322287170,1712933452653,-500.0,0.00049041,31]
[322287171,1712933452662,-500.0,0.00049041,31]
[322287172,1712933452671,-500.0,0.00049041,31]
[322287173,1712933452681,-718.02,0.00049041,31]
[322287174,1712933452690,-523.34,0.00049041,31]
[322287175,1712933452700,-500.0,0.00049041,31]
[322287176,1712933452709,-579.12,0.00049041,31]
[322287177,1712933452719,-500.0,0.00049041,31]
[322287178,1712933452729,-573.61,0.00049041,31]
[322287179,1712933452738,-500.0,0.00049041,31]
[322287180,1712933452748,-500.0,0.00049041,31]
[322287181,1712933452758,-1064.79,0.00049041,31]
[322287182,1712933452772,-1131.12,0.00049041,31]
[322287183,1712933452782,-598.42,0.00049041,31]
[322287184,1712933452793,-500.0,0.00049041,31]
[322287185,1712933452805,-609.3,0.00049041,31]
[322287186,1712933452816,-9337.35,0.00049041,31]
[322287187,1712933452828,-625.88,0.00049041,31]
[322287188,1712933452839,-1291.28,0.00049041,31]
[322287189,1712933452849,-500.0,0.00049041,31]
[322287190,1712933452860,-500.0,0.00049041,31]
[322287191,1712933452872,-500.0,0.00049041,31]
[322287192,1712933452883,-500.0,0.00049041,31]
[322287193,1712933452893,-500.0,0.00049041,31]
[322287194,1712933452902,-508.23,0.00049041,31]
[322287195,1712933452912,-1344.36,0.00049041,31]
[322287196,1712933452922,-1134.25,0.00049041,31]
[322287197,1712933452932,-500.0,0.00049041,31]
[322287198,1712933452942,-502.17,0.00049041,31]
[322287199,1712933452952,-500.0,0.00049041,31]
[322287200,1712933452961,-500.0,0.00049041,31]
[322287201,1712933452973,-500.0,0.00049041,31]
[322287202,1712933452982,-1264.6,0.00049041,31]
[322287203,1712933452992,-500.0,0.00049041,31]
[322287204,1712933453002,-500.0,0.00049041,31]
[322287205,1712933453011,-500.0,0.00049041,31]
[322287206,1712933453021,-2973.5,0.00049041,31]
[322287207,1712933453031,-867.26,0.00049041,31]
[322287208,1712933453040,-500.0,0.00049041,31]
[322287209,1712933453050,-517.64,0.00049041,31]
[322287210,1712933453059,-500.0,0.00049041,31]
[322287211,1712933453069,-500.0,0.00049041,31]
[322287212,1712933453079,-500.0,0.00049041,31]
[322287213,1712933453089,-500.0,0.00049041,31]
[322287214,1712933453098,-500.0,0.00049041,31]
[322287215,1712933453107,-500.0,0.00049041,31]
[322287216,1712933453117,-1091.31,0.00049041,31]
[322287217,1712933453126,-626.55,0.00049041,31]
[322287218,1712933453136,-761.09,0.00049041,31]
[322287219,1712933453146,-219.2,0.00049205,120]
[322287220,1712933453156,-150.0,0.00049216,7]
[322287221,1712933453165,-150.0,0.00049245,7]
[322287222,1712933453175,-150.0,0.00049251,7]
[322287223,1712933453185,-150.0,0.00049255,7]
[322287224,1712933453196,-150.0,0.00049267,7]
[322287225,1712933453206,-369.0,0.00049281,30]
[322287226,1712933453216,-5347.99935611,0.00049299,2]
[322287227,1712933453225,-500.0,0.00049315,2]
[322287228,1712933453235,-500.0,0.00049315,120]
[322287229,1712933453245,-500.0,0.00049315,120]
[322287230,1712933453254,-500.0,0.00049315,120]
[322287231,1712933453264,-500.0,0.00049315,120]
[322287232,1712933453277,-500.0,0.00049315,120]
[322287233,1712933453288,-500.0,0.00049315,120]
[322287234,1712933453298,-500.0,0.00049315,120]
[322287235,1712933453307,-500.0,0.00049315,120]
[322287236,1712933453316,-3000.0,0.00049315,120]
[322287237,1712933453326,-500.0,0.00049315,120]
[322287238,1712933453335,-500.0,0.00049315,120]
[322287239,1712933453344,-500.0,0.00049315,120]
[322287240,1712933453354,-500.0,0.00049315,120]
[322287241,1712933453364,-666.0,0.00049315,2]
[322287242,1712933453374,-219.42076058,0.00049315,120]
[322287243,1712933453384,-500.0,0.00049315,120]
[322287244,1712933453394,-500.0,0.00049315,120]
[322287245,1712933453404,-500.0,0.00049315,120]
[322287246,1712933453414,-500.0,0.00049315,120]
[322287247,1712933453424,-500.0,0.00049315,2]
[322287248,1712933453433,-500.0,0.00049315,120]
[322287249,1712933453443,-500.0,0.00049315,120]
[322287250,1712933453452,-500.0,0.00049315,120]
[322287251,1712933453463,-1631.72,0.00049315,120]
[322287252,1712933453477,-3151.62,0.00049315,120]
[322287253,1712933453487,-500.0,0.00049315,120]
[322287254,1712933453499,-500.0,0.00049315,120]
[322287255,1712933453509,-576.93255855,0.00049315,120]
[322287256,1712933453520,-602.43,0.00049315,120]
[322287257,1712933453530,-745.31,0.00049315,120]
[322287258,1712933453540,-500.0,0.00049315,120]
[322287259,1712933453550,-851.11,0.00049315,120]
[322287260,1712933453560,-1807.51,0.00049315,120]
[322287261,1712933453571,-500.0,0.00049315,120]
[322287262,1712933453580,-597.07,0.00049315,120]
[322287263,1712933453591,-500.0,0.00049315,120]
[322287264,1712933453600,-500.0,0.00049315,21]
[322287265,1712933453610,-3805.15,0.00049315,120]
[322287266,1712933453620,-210.86600603,0.00049315,120]
[322287267,1712933453630,-500.0,0.00049315,120]
[322287268,1712933453640,-600.56977219,0.00049315,120]
[322287269,1712933453650,-500.0,0.00049315,120]
[322287270,1712933453659,-718.02,0.00049315,120]
[322287271,1712933453669,-523.34,0.00049315,120]
[322287272,1712933453680,-500.0,0.00049315,120]
[322287273,1712933453689,-579.12,0.00049315,120]
[322287274,1712933453699,-500.0,0.00049315,120]
[322287275,1712933453708,-500.0,0.00049315,120]
[322287276,1712933453718,-500.0,0.00049315,120]
[322287277,1712933453728,-1064.79,0.00049315,120]
[322287278,1712933453738,-1131.12,0.00049315,120]
[322287279,1712933453748,-598.42,0.00049315,120]
[322287280,1712933453758,-500.0,0.00049315,120]
[322287281,1712933453774,-609.3,0.00049315,120]
[322287282,1712933453783,-9337.35,0.00049315,120]
[322287283,1712933453795,-625.88,0.00049315,120]
[322287284,1712933453806,-1291.28,0.00049315,120]
[322287285,1712933453817,-500.0,0.00049315,120]
[322287286,1712933453827,-500.0,0.00049315,120]
[322287287,1712933453837,-500.0,0.00049315,120]
[322287288,1712933453847,-500.0,0.00049315,120]
[322287289,1712933453857,-500.0,0.00049315,120]
[322287290,1712933453868,-508.23,0.00049315,120]
[322287291,1712933453879,-1344.36,0.00049315,120]
[322287292,1712933453889,-1134.25,0.00049315,120]
[322287293,1712933453898,-500.0,0.00049315,120]
[322287294,1712933453908,-500.0,0.00049315,120]
[322287295,1712933453919,-500.0,0.00049315,120]
[322287296,1712933453929,-500.0,0.00049315,120]
[322287297,1712933453939,-1264.6,0.00049315,120]
[322287298,1712933453949,-500.0,0.00049315,120]
[322287299,1712933453959,-500.0,0.00049315,120]
[322287300,1712933453969,-500.0,0.00049315,120]
[322287301,1712933453979,-2973.5,0.00049315,120]
[322287302,1712933453989,-867.26,0.00049315,120]
[322287303,1712933453999,-500.0,0.00049315,120]
[322287304,1712933454009,-517.64,0.00049315,120]
[322287305,1712933454019,-479.10288866,0.00049315,120]
[322287306,1712933454032,-500.0,0.00049315,120]
[322287307,1712933454042,-500.0,0.00049315,120]
[322287308,1712933454052,-500.0,0.00049315,120]
[322287309,1712933454061,-500.0,0.00049315,120]
[322287310,1712933454072,-500.0,0.00049315,120]
[322287311,1712933454082,-1091.31,0.00049315,120]
[322287312,1712933454091,-626.55,0.00049315,120]
[322287313,1712933454101,-761.09,0.00049315,120]
[322287314,1712933454111,-159.5,0.00049315,2]
[322287315,1712933454121,-150.51,0.00049315,2]
[322287316,1712933454130,-150.0,0.00049317,7]
[322287317,1712933454140,-151.0,0.00049342,120]
[322287318,1712933454150,-11999.074563,0.000494,2]
[322287319,1712933454159,-197.26966187,0.00049419,7]
[322287320,1712933454169,-150.0,0.00049425,7]
[322287321,1712933454178,-150.0,0.00049432,7]
[322287322,1712933454188,-154.54625386,0.00049432,42]
[322287323,1712933454197,-150.0,0.00049438,7]
[322287324,1712933454207,-150.0,0.00049445,7]
[322287325,1712933454217,-3000.0,0.00049452,120]
[322287326,1712933454226,-23918.06266215,0.000495,2]
[322287327,1712933454235,-5000.0,0.000495,120]
[322287328,1712933454245,-8000.0,0.000495,120]
[322287329,1712933454254,-150.0,0.000495,10]
[322287330,1712933454266,-815.25925,0.000495,47]
[322287331,1712933454279,-2981.19815843,0.00049501,120]
[322287332,1712933454289,-8365.88569255,0.0004951,2]
[322287333,1712933454299,-150.0,0.00049529,7]
[322287334,1712933454308,-8000.0,0.00049561,120]
[322287335,1712933454318,-5000.0,0.00049569,120]
[322287336,1712933454328,-500.0,0.00049589,2]
[322287337,1712933454337,-496.82,0.00049589,120]
[322287338,1712933454347,-500.0,0.00049589,120]
[322287339,1712933454357,-500.0,0.00049589,120]
[322287340,1712933454367,-500.0,0.00049589,120]
[322287341,1712933454377,-500.0,0.00049589,120]
[322287342,1712933454387,-427.05,0.00049589,120]
[322287343,1712933454397,-500.0,0.00049589,120]
[322287344,1712933454407,-500.0,0.00049589,120]
[322287345,1712933454417,-3000.0,0.00049589,120]
[322287346,1712933454427,-500.0,0.00049589,120]
[322287347,1712933454436,-500.0,0.00049589,120]
[322287348,1712933454446,-500.0,0.00049589,120]
[322287349,1712933454455,-500.0,0.00049589,120]
[322287350,1712933454466,-500.0,0.00049589,120]
[322287351,1712933454475,-500.0,0.00049589,120]
[322287352,1712933454485,-500.0,0.00049589,120]
[322287353,1712933454496,-500.0,0.00049589,120]
[322287354,1712933454506,-500.0,0.00049589,2]
[322287355,1712933454516,-500.0,0.00049589,120]
[322287356,1712933454528,-500.0,0.00049589,120]
[322287357,1712933454538,-1631.72,0.00049589,120]
[322287358,1712933454548,-3151.62,0.00049589,120]
[322287359,1712933454558,-500.0,0.00049589,120]
[322287360,1712933454567,-500.0,0.00049589,120]
[322287361,1712933454577,-602.43,0.00049589,120]
[322287362,1712933454587,-745.31,0.00049589,120]
[322287363,1712933454597,-500.0,0.00049589,120]
[322287364,1712933454606,-851.11,0.00049589,120]
[322287365,1712933454616,-1807.51,0.00049589,120]
[322287366,1712933454626,-500.0,0.00049589,120]
[322287367,1712933454635,-597.07,0.00049589,120]
[322287368,1712933454645,-500.0,0.00049589,120]
[322287369,1712933454654,-500.0,0.00049589,21]
[322287370,1712933454664,-3805.15,0.00049589,120]
[322287371,1712933454673,-500.0,0.00049589,120]
[322287372,1712933454683,-500.0,0.00049589,120]
[322287373,1712933454692,-718.02,0.00049589,120]
[322287374,1712933454702,-523.34,0.00049589,120]
[322287375,1712933454711,-500.0,0.00049589,120]
[322287376,1712933454721,-579.12,0.00049589,120]
[322287377,1712933454731,-500.0,0.00049589,120]
[322287378,1712933454741,-500.0,0.00049589,120]
[322287379,1712933454750,-500.0,0.00049589,120]
[322287380,1712933454759,-1064.79,0.00049589,120]
[322287381,1712933454775,-1131.12,0.00049589,120]
[322287382,1712933454784,-598.42,0.00049589,120]
[322287383,1712933454795,-368.38,0.00049589,120]
[322287384,1712933454805,-609.3,0.00049589,120]
[322287385,1712933454816,-9337.35,0.00049589,120]
[322287386,1712933454825,-625.88,0.00049589,120]
[322287387,1712933454835,-1291.28,0.00049589,120]
[322287388,1712933454845,-500.0,0.00049589,120]
[322287389,1712933454855,-500.0,0.00049589,120]
[322287390,1712933454865,-283.36,0.00049589,120]
[322287391,1712933454876,-500.0,0.00049589,120]
[322287392,1712933454886,-500.0,0.00049589,120]
[322287393,1712933454896,-508.23,0.00049589,120]
[322287394,1712933454907,-1344.36,0.00049589,120]
[322287395,1712933454917,-1134.25,0.00049589,120]
[322287396,1712933454928,-500.0,0.00049589,120]
[322287397,1712933454938,-500.0,0.00049589,120]
[322287398,1712933454948,-500.0,0.00049589,120]
[322287399,1712933454958,-1264.6,0.00049589,120]
[322287400,1712933454968,-500.0,0.00049589,120]
[322287401,1712933454978,-500.0,0.00049589,120]
[322287402,1712933454989,-500.0,0.00049589,120]
[322287403,1712933455000,-2973.5,0.00049589,120]
[322287404,1712933455010,-867.26,0.00049589,120]
[322287405,1712933455019,-500.0,0.00049589,120]
[322287406,1712933455032,-517.64,0.00049589,120]
[322287407,1712933455043,-260.46,0.00049589,120]
[322287408,1712933455053,-500.0,0.00049589,120]
[322287409,1712933455063,-500.0,0.00049589,120]
[322287410,1712933455073,-500.0,0.00049589,120]
[322287411,1712933455083,-500.0,0.00049589,120]
[322287412,1712933455093,-1091.31,0.00049589,120]
[322287413,1712933455103,-626.55,0.00049589,120]
[322287414,1712933455113,-761.09,0.00049589,120]
[322287415,1712933455122,-1000.0,0.00049599,60]
[322287416,1712933455131,-500.0,0.00049599,30]
[322287417,1712933455141,-170.35,0.000496,7]
[322287418,1712933455151,-161.34,0.000496,7]
[322287419,1712933455161,-14756.85631244,0.000496,2]
[322287420,1712933455171,-14789.856347,0.0004961,2]
[322287421,1712933455181,-150.0,0.0004962,7]
[322287422,1712933455191,-8000.0,0.00049622,120]
[322287423,1712933455201,-5000.0,0.00049638,120]
[322287424,1712933455211,-150.0,0.0004964,7]
[322287425,1712933455221,-150.0,0.00049646,7]
[322287426,1712933455230,-13750.763,0.0004968,120]
[322287427,1712933455240,-8000.0,0.00049683,120]
[322287428,1712933455249,-300.0,0.000497,7]
[322287429,1712933455259,-1595.37169976,0.000497,120]
[322287430,1712933455269,-1595.37169976,0.000497,120]
[322287431,1712933455284,-1595.37169976,0.000497,120]
[322287432,1712933455294,-1595.37169976,0.000497,120]
[322287433,1712933455303,-1595.37169976,0.000497,120]
[322287434,1712933455314,-1595.37169976,0.000497,120]
[322287435,1712933455324,-1595.37169976,0.000497,120]
[322287436,1712933455333,-1595.37169976,0.000497,120]
[322287437,1712933455344,-1595.37169976,0.000497,120]
[322287438,1712933455353,-1595.37169976,0.000497,120]
[322287439,1712933455362,-1595.37169976,0.000497,120]
[322287440,1712933455372,-1595.37169976,0.000497,120]
[322287441,1712933455382,-1595.37169976,0.000497,120]
[322287442,1712933455391,-1595.37169976,0.000497,120]
[322287443,1712933455401,-1595.37169976,0.000497,120]
[322287444,1712933455410,-1595.37169976,0.000497,120]
[322287445,1712933455420,-1595.37169976,0.000497,120]
[322287446,1712933455430,-1595.37169976,0.000497,120]
[322287447,1712933455440,-1595.37169976,0.000497,120]
[322287448,1712933455450,-1595.87,0.000497,120]
[322287449,1712933455460,-689.60884066,0.000497,120]
[322287450,1712933455470,-689.60884066,0.000497,120]
[322287451,1712933455479,-689.60884066,0.000497,120]
[322287452,1712933455489,-689.60884066,0.000497,120]
[322287453,1712933455498,-689.60884066,0.000497,120]
[322287454,1712933455509,-689.60884066,0.000497,120]
[322287455,1712933455519,-689.60884066,0.000497,120]
[322287456,1712933455531,-689.60884066,0.000497,120]
[322287457,1712933455541,-689.60884066,0.000497,120]
[322287458,1712933455551,-689.60884066,0.000497,120]
[322287459,1712933455561,-689.60884066,0.000497,120]
[322287460,1712933455570,-689.60884066,0.000497,120]
[322287461,1712933455580,-689.60884066,0.000497,120]
[322287462,1712933455590,-689.60884066,0.000497,120]
[322287463,1712933455600,-689.60884066,0.000497,120]
[322287464,1712933455611,-689.60884066,0.000497,120]
[322287465,1712933455621,-689.60884066,0.000497,120]
[322287466,1712933455631,-689.60884066,0.000497,120]
[322287467,1712933455641,-689.60884066,0.000497,120]
[322287468,1712933455652,-690.1,0.000497,120]
[322287469,1712933455662,-150.63540403,0.000497,120]
[322287470,1712933455672,-150.63540403,0.000497,120]
[322287471,1712933455682,-150.63540403,0.000497,120]
[322287472,1712933455838,-150.63540403,0.000497,120]
[322287473,1712933455850,-150.63540403,0.000497,120]
[322287474,1712933455861,-150.63540403,0.000497,120]
[322287475,1712933455872,-150.63540403,0.000497,120]
[322287476,1712933455882,-150.63540403,0.000497,120]
[322287477,1712933455894,-150.63540403,0.000497,120]
[322287478,1712933455903,-150.63540403,0.000497,120]
[322287479,1712933455913,-150.63540403,0.000497,120]
[322287480,1712933455924,-150.63540403,0.000497,120]
[322287481,1712933455934,-150.63540403,0.000497,120]
[322287482,1712933455944,-150.63540403,0.000497,120]
[322287483,1712933455954,-150.63540403,0.000497,120]
[322287484,1712933455965,-150.63540403,0.000497,120]
[322287485,1712933455977,-150.63540403,0.000497,120]
[322287486,1712933455988,-151.13,0.000497,120]
[322287487,1712933455999,-598.76595415,0.000497,120]
[322287488,1712933456009,-598.76595415,0.000497,120]
[322287489,1712933456019,-598.76595415,0.000497,120]
[322287490,1712933456031,-598.76595415,0.000497,120]
[322287491,1712933456041,-598.76595415,0.000497,120]
[322287492,1712933456050,-598.76595415,0.000497,120]
[322287493,1712933456060,-598.76595415,0.000497,120]
[322287494,1712933456069,-598.76595415,0.000497,120]
[322287495,1712933456079,-598.76595415,0.000497,120]
[322287496,1712933456088,-598.76595415,0.000497,120]
[322287497,1712933456098,-598.76595415,0.000497,120]
[322287498,1712933456108,-598.76595415,0.000497,120]
[322287499,1712933456118,-598.76595415,0.000497,120]
[322287500,1712933456127,-598.76595415,0.000497,120]
[322287501,1712933456137,-598.76595415,0.000497,120]
[322287502,1712933456146,-598.76595415,0.000497,120]
[322287503,1712933456156,-598.76595415,0.000497,120]
[322287504,1712933456165,-598.76595415,0.000497,120]
[322287505,1712933456174,-598.76595415,0.000497,120]
[322287506,1712933456184,-599.26,0.000497,120]
[322287507,1712933456194,-150.0,0.00049704,7]
[322287508,1712933456204,-150.78373872,0.00049705,26]
[322287509,1712933456214,-5000.0,0.00049706,120]
[322287510,1712933456224,-4523.85632777,0.0004972,2]
[322287511,1712933456233,-3000.0,0.00049726,120]
[322287512,1712933456242,-150.0,0.00049732,7]
[322287513,1712933456252,-8000.0,0.00049744,120]
[322287514,1712933456261,-815.25925,0.0004975,48]
[322287515,1712933456270,-5000.0,0.00049775,120]
[322287516,1712933456287,-1070127.49877922,0.0004978,15]
[322287517,1712933456297,-2981.19815843,0.00049788,120]
[322287518,1712933456307,-150.0,0.00049799,7]
[322287519,1712933456316,-150.0,0.00049799,7]
[322287520,1712933456326,-263.30937268,0.00049799,7]
[322287521,1712933456335,-3377.76195446,0.000498,120]
[322287522,1712933456345,-302679.19422139,0.000498,61]
[322287523,1712933456354,-1241539.66380098,0.000498,30]
[322287524,1712933456506,-1791978.44452602,0.000498,30]
[322287525,1712933456518,-348.27,0.000498,30]
[322287526,1712933456539,-1735.1730244,0.000498,30]
[322287527,1712933456551,-1465.62805132,0.000498,30]
[322287528,1712933456562,-364.93972209,0.000498,30]
[322287529,1712933456573,-26270.69862396,0.000498,30]
[322287530,1712933456585,-2410.68046791,0.000498,30]
[322287531,1712933456596,-53598.77304337,0.000498,30]
[322287532,1712933456607,-365.29596654,0.000498,30]
[322287533,1712933456746,-22532.66473609,0.000498,30]
[322287534,1712933456758,-4584.3918342,0.000498,30]
[322287535,1712933456775,-7651.71,0.000498,30]
[322287536,1712933456787,-122816.24125497,0.000498,30]
[322287537,1712933456801,-266.25031721,0.000498,30]
[322287538,1712933456813,-20387.49874412,0.000498,30]
[322287539,1712933456842,-6888.8502,0.000498,30]
[322287540,1712933456859,-5218.16139869,0.000498,30]
[322287541,1712933456870,-2654.4,0.000498,30]
[322287542,1712933456882,-5897.34036562,0.000498,30]
[322287543,1712933456893,-1386.44986655,0.000498,30]
[322287544,1712933456940,-505.38498314,0.00020595,2]
[322287545,1712933456949,-588.26704103,0.000498,30]
[322287546,1712933456961,-302.15924997,0.000498,30]
[322287547,1712933456980,-270.68705992,0.000498,30]
[322287548,1712933456992,-347774.99999978,0.000498,30]
[322287549,1712933457004,-55955.93105103,0.000498,30]
[322287550,1712933457017,-278300.0,0.000498,30]
[322287551,1712933457031,-335.79999995,0.000498,30]
[322287552,1712933457043,-1482.10899994,0.000498,30]
[322287553,1712933457054,-412.1753019,0.000498,30]
[322287554,1712933457065,-296.13443335,0.000498,30]
[322287555,1712933457080,-279.42612179,0.00049688,2]
[322287556,1712933457090,-920.54730061,0.000498,30]
[322287557,1712933457101,-5805.80046447,0.000498,30]
[322287558,1712933457112,-3636.18873466,0.000498,30]
[322287559,1712933457124,-6068.35320014,0.000498,30]
[322287560,1712933457140,-2716.2317618,0.000498,30]
[322287561,1712933457151,-6955.99092,0.000498,30]
[322287562,1712933457166,-178157.2743395,0.000498,30]
[322287563,1712933457177,-12770.99500581,0.000498,30]
[322287564,1712933457189,-916.9549256,0.000498,30]
[322287565,1712933457207,-3423.7920327,0.000498,30]
[322287566,1712933457219,-776.90929778,0.000498,30]
[322287567,1712933457230,-796.30001,0.000498,30]
[322287568,1712933457241,-505.9999999,0.000498,30]
[322287569,1712933457253,-8868.17714718,0.000498,30]
[322287570,1712933457375,-500.0,0.00020597,2]
[322287571,1712933457385,-500.0,0.00020597,2]
[322287572,1712933457394,-500.0,0.00020597,2]
[322287573,1712933457403,-174.39821588,0.00046575,31]
[322287574,1712933457416,-325.60178412,0.00046575,31]
[322287575,1712933457425,-500.0,0.00046849,31]
[322287576,1712933457434,-118215.20741528,0.000498,30]
[322287577,1712933457454,-500.0,0.00020597,2]
[322287578,1712933457463,-195.8065,0.000498,30]
[322287579,1712933457475,-4522.30600001,0.000498,30]
[322287580,1712933457486,-3457.00000005,0.000498,30]
[322287581,1712933457497,-49237.24798715,0.000498,30]
[322287582,1712933457509,-12536.24858248,0.000498,30]
[322287583,1712933457562,-627.95440144,0.00020597,2]
[322287584,1712933457571,-396.14559856,0.00030137,2]
[322287585,1712933457646,-138.85440144,0.00030137,2]
[322287586,1712933457657,-500.0,0.00046575,31]
[322287587,1712933457668,-4613.25131787,0.000498,30]
[322287588,1712933463165,1019.58204492,0.000205,2]
[322287589,1712933464213,209.37637678,0.000205,2]
[322287591,1712933525094,1537.90725779,0.000155,2]
[322287593,1712933548107,1266.106,0.00020441,2]
[322287594,1712933582814,153.3,0.0002099,15]
[322287595,1712933582900,150.5,0.0002099,15]
[322287596,1712933583156,150.5,0.0002099,15]
[322287597,1712933583384,150.5,0.0002098,15]
[322287598,1712933583576,151.8,0.0002099,15]
[322287599,1712933583658,150.5,0.0002098,15]
[322287600,1712933583753,150.5,0.0002099,15]
[322287601,1712933583863,152.06,0.0002097,15]
[322287602,1712933584006,150.5,0.0002099,15]
[322287603,1712933584163,154.09,0.0002097,15]
[322287604,1712933584246,151.27,0.0002099,15]
[322287605,1712933584313,216.14,0.0002098,15]
[322287606,1712933584570,151.49,0.0002098,15]
[322287607,1712933584617,246.3,0.0002099,15]
[322287608,1712933584991,201140.44586941,0.000189,2]
[322287609,1712933585018,13340.06296168,0.000189,2]
[322287610,1712933585041,248228.56670209,0.000189,2]
[322287611,1712933627953,751.33037442,0.0002,2]
[322287613,1712933656555,1852.80142533,0.0002,10]
[322287616,1712933671464,2289.11504701,0.00015,2]
[322287617,1712933676469,1638.4351428,0.0002,10]
[322287619,1712933687168,14043.81266946,0.0002,2]
[322287622,1712933704249,398.75526945,0.00019178,2]
[322287623,1712933739767,624.61,0.00020488,2]
[322287624,1712933768817,155.0,0.00020488,2]
[322287626,1712933791626,446.97,0.00019897,2]
[322287627,1712933797152,200.0,0.00019798,2]
[322287629,1712933831748,1500.0,0.00019887,2]
[322287630,1712933849243,1852.42,0.00019881,2]
[322287631,1712933861904,744.36,0.00019879,2]
[322287633,1712933924709,1000.0,0.00019872,2]
[322287634,1712933940524,150.47552783,0.00019773,2]
[322287635,1712933953833,250.1,0.00017963,2]
[322287636,1712933954067,250.1,0.00020227,2]
[322287637,1712933970943,150.4,0.00019873,2]
[322287638,1712933971196,150.4,0.00019898,2]